Workbook

Sheet PFP
A1: PROPOSTA FINANCEIRA DO PROJETO | J1: CODIGO:
J2: PFP
A3: NOME DA CONSULTORA:
A5: PROJETO: | F5: CONTRATANTE: | J5: BASE: Nov/2020
A6: Projeto Executivo e Estudos Complementares dos Sistemas de Adução na Região do Seridó no Estado do Rio Grande do Norte | F6: CODEVASF (SEDE) | J6: CODE: Jan/2020 PROP: Nov/2020
A7: Base | B7: Cod1 | C7: Cod2 | D7: Categoria / Insumo | E7: Uni | F7: Qde | G7: CUD | H7: PU | I7: FatorK | J7: CT | K7: PT
A8: CODE | B8: MO2 | C8: P0 | D8: Engenheiro Sênior | E8: mês | F8: ='CRO1_Ins-Pro'!D5 -> 11.5 | G8: 19796.48 | H8: =ROUND(I8*G8,2) -> 33560.97 | I8: =PFP2.2_FatorKb!$E$36 -> 1.6953 | J8: =ROUND(F8*G8,2) -> 227659.52 | K8: =ROUND(F8*H8,2) -> 385951.16
A9: CODE | B9: MO2 | C9: P1 | D9: Engenheiro Pleno | E9: mês | F9: ='CRO1_Ins-Pro'!D6 -> 46 | G9: 15304.96 | H9: 25946.5 | I9: =PFP2.2_FatorKb!$E$36 -> 1.6953 | J9: 704028.16 | K9: 1193539
A10: CODE | B10: MO1 | C10: P2 | D10: Engenheiro Médio | E10: mês | F10: ='CRO1_Ins-Pro'!D7 -> 46 | G10: 11711.04 | H10: 27690.75 | I10: =PFP2.1_FatorKa!$E$36 -> 2.3645 | J10: 538707.84 | K10: 1273774.5
A11: CODE | B11: MO1 | C11: P3 | D11: Engenheiro Júnior | E11: mês | F11: ='CRO1_Ins-Pro'!D8 -> 84 | G11: 9724 | H11: 22992.4 | I11: =PFP2.1_FatorKa!$E$36 -> 2.3645 | J11: 816816 | K11: 1931361.6
A12: PROP | B12: MO1 | C12: S1 | D12: Analista Pleno | E12: mês | F12: ='CRO1_Ins-Pro'!D9 -> 2 | G12: 5963.68 | H12: 14101.12 | I12: =PFP2.1_FatorKa!$E$36 -> 2.3645 | J12: 11927.36 | K12: 28202.24
A13: PROP | B13: MO1 | C13: S2 | D13: Analista Médio | E13: mês | F13: ='CRO1_Ins-Pro'!D10 -> 4 | G13: 4782.69 | H13: 11308.67 | I13: =PFP2.1_FatorKa!$E$36 -> 2.3645 | J13: 19130.76 | K13: 45234.68
A14: PROP | B14: MO1 | C14: S3 | D14: Analista Júnior | E14: mês | F14: ='CRO1_Ins-Pro'!D11 -> 4 | G14: 3601.69 | H14: 8516.2 | I14: =PFP2.1_FatorKa!$E$36 -> 2.3645 | J14: 14406.76 | K14: 34064.8
A15: CODE | B15: MO1 | C15: T2 | D15: Técnico Pleno | E15: mês | F15: ='CRO1_Ins-Pro'!D12 -> 46 | G15: 5362.72 | H15: 12680.15 | I15: =PFP2.1_FatorKa!$E$36 -> 2.3645 | J15: 246685.12 | K15: 583286.9
A16: CODE | B16: MO1 | C16: T3 | D16: Técnico Junior | E16: mês | F16: ='CRO1_Ins-Pro'!D13 -> 92 | G16: 4627.04 | H16: 10940.64 | I16: =PFP2.1_FatorKa!$E$36 -> 2.3645 | J16: 425687.68 | K16: 1006538.88
A17: CODE | B17: MO1 | C17: A1 | D17: Administrativo (Secretariado) | E17: mês | F17: ='CRO1_Ins-Pro'!D14 -> 23 | G17: 5007.2 | H17: 11839.52 | I17: =PFP2.1_FatorKa!$E$36 -> 2.3645 | J17: 115165.6 | K17: 272308.96
A18: CODE | B18: DP | C18: V1 | D18: Diárias | E18: dia | F18: ='CRO1_Ins-Pro'!D15 -> 615 | G18: 239 | H18: 300.14 | I18: =PFP3_FatorKc!$E$17 -> 1.2558 | J18: 146985 | K18: 184586.1
A19: CODE | B19: DP | C19: V3 | D19: Caminhonete 2.8 4x4 Diesel | E19: dia | F19: ='CRO1_Ins-Pro'!D16 -> 246 | G19: 196.18 | H19: 246.36 | I19: =PFP3_FatorKc!$E$17 -> 1.2558 | J19: 48260.28 | K19: 60604.56
A20: PROP | B20: DP | C20: V4 | D20: Passagens Aéreas (ida e volta) | E20: un | F20: ='CRO1_Ins-Pro'!D17 -> 115 | G20: =AVERAGE(996,955,929,1014,1076) -> 994 | H20: 1248.27 | I20: =PFP3_FatorKc!$E$17 -> 1.2558 | J20: 114310 | K20: 143551.05
A21: CODE | B21: EM | C21: M1 | D21: Relatório Parcial | E21: un | F21: ='CRO1_Ins-Pro'!D18 -> 33 | G21: 33.35 | H21: 41.88 | I21: =PFP3_FatorKc!$E$17 -> 1.2558 | J21: 1100.55 | K21: =ROUND(F21*H21,2) -> 1382.04
A22: CODE | B22: EM | C22: M2 | D22: Relatório Final | E22: un | F22: ='CRO1_Ins-Pro'!D19 -> 33 | G22: 1478.8 | H22: 1857.08 | I22: =PFP3_FatorKc!$E$17 -> 1.2558 | J22: 48800.4 | K22: 61283.64
A23: CODE | B23: SU | C23: TP | D23: Total Serviços Cartográficos | E23: un | F23: ='CRO1_Ins-Pro'!D20 -> 1 | G23: - | H23: =PFP1.1_Topo!G17 -> 437669.76 | I23: - | J23: - | K23: 437669.76
A24: CODE | B24: SU | C24: GT | D24: Total Serviços Geotécnicos | E24: un | F24: ='CRO1_Ins-Pro'!D21 -> 1 | G24: - | H24: =PFP1.2_Geo!G39 -> 975933.11 | I24: - | J24: - | K24: 975933.11
A25: TOTAL DOS CUSTOS DIRETOS | H25: =SUM(J8:J24) -> 3479671.03
A26: TOTAL DOS ENCARGOS E DISPESAS DIVERSAS | H26: =H27-H25 -> 3725999.08
A27: TOTAL DA PROPOSTA A PREÇO GLOBAL | H27: =SUM(K8:K22) -> 7205670.11
A28: TOTAL DA PROPOSTA A PREÇO UNITÁRIO | H28: =SUM(K23:K24) -> 1413602.87
A29: TOTAL DA PROPOSTA | H29: =H27+H28 -> 8619272.98
A30: OBSERVAÇÃO:
A31: Alocar os Insumos MO, com respectivo FatorK, dentro da categoria de vínculo contratual (com ou sem) de cada tipo de profissional
A32: Uni - unidade de medição do insumo;
A33: Qde - Quantidade do Insumo (não pode ocorrer alteração pela Licitante)
A34: CUD - Custo Unitário Direto do Insumo (sem encargos, taxas e impostos, valor não pode ser maior que o Orçado pela Codevasf)
A35: CT - Custo Total (sem encargos, taxas e impostos) - CT = Qde x CUD
A36: FatorK - Taxa de Ressarcimento de Despesas e Encargos (detalhar composição nas Planilhas "PFP2.1", "PFP2.2", "PFP3")
A37: PU - Preço Unitário do Insumo (incluído encargos, taxas e impostos) - PU = CUD x FatorK
A38: PT - Preço Total do Insumo (incluído encargos, taxas e impostos) - PT = Qde x PU
A39: P - Profissionais nível superior nas áreas de Engenharia, Química, Arquitetura, Agronomia e Veterinária, conforme disposições da Lei 4.950-A/66
A40: S - Profissionais de nível superior nas demais áreas de atuação, incluindo Arqueólogo, Biólogo, Geógrafo e Socioólogo
A41: T - Profissionais de nível médio técnico nas diversas áreas de atuação
A42: A - Profissionais de nível médio de apoio técnico-administrativo

Sheet PFP1.1_Topo
A1: SERVIÇOS TOPOGRÁFICOS/CARTOGRÁFICOS | G1: CODIGO:
G2: PFP-1.1
A3: NOME DA EMPRESA:
A5: PROJETO: | E5: CONTRATANTE: | G5: BASE: Nov/2020
A6: =PFP!A6 -> Projeto Executivo e Estudos Complementares dos Sistemas de Adução na Região do Seridó no Estado do Rio Grande do Norte | E6: CODEVASF (SEDE) | G6: CODE: Jan/2020
A7: Cod. | B7: Base | C7: Insumos | D7: Uni | E7: Qde | F7: Preço Unitário (PU) | G7: Preço Total (PT)
A8: TP08 | B8: CODE | C8: Nivelamento Geométrico classe IIN | D8: km | E8: 200 | F8: 788.72 | G8: =ROUND(F8*E8,2) -> 157744
A9: TP16.1 | B9: CODE | C9: Poligonal Classe IIP | D9: km | E9: 100 | F9: 1984.3 | G9: 198430
A10: TP19 | B10: CODE | C10: Pontos GPS de dupla frequencia (L1/L2) | D10: un | E10: 30 | F10: 981.07 | G10: 29432.1
A11: TP20 | B11: CODE | C11: Levantamento Ecobatimetrico | D11: ha | E11: 4 | F11: 853.31 | G11: 3413.24
A12: TP21 | B12: CODE | C12: Levantamento Topobatimétrico | D12: km | E12: 4 | F12: 1260.83 | G12: 5043.32
A13: TP27 | B13: CODE | C13: Marco de Concreto (12x18x60cm) | D13: un | E13: 30 | F13: 53.89 | G13: 1616.7
A14: TP28 | B14: CODE | C14: Barrote de Madeira (10x10x50cm) | D14: un | E14: 500 | F14: 28.7 | G14: 14350
A15: TP29 | B15: CODE | C15: Piquetes de Madeira (2x2x20cm) | D15: un | E15: 5000 | F15: 2.41 | G15: 12050
A16: PD06 | B16: CODE | C16: Picada Manual p/ levantamento TP | D16: km | E16: 80 | F16: 194.88 | G16: =ROUND(F16*E16,2) -> 15590.4
A17: TOTAL SERVIÇOS TOPOGRÁFICOS | G17: =SUM(G8:G16) -> 437669.76
A18: OBSERVAÇÃO:
A19: Uni - unidade de medição do insumo;
A20: Qde - Quantidade do Insumo (não pode ocorrer alteração pela Licitante)
A21: PU - Preço Unitário (composições padrão da Codevasf, já incluso o FatorK)
A22: PT - Preço Total (incluído encargos, taxas e impostos) - PT = Qde x PU

Sheet PFP1.2_Geo
A1: SERVIÇOS GEOLÓGICOS/GEOTÉCNICOS | G1: CODIGO:
G2: PFP-1.2
A3: NOME DA EMPRESA:
A5: PROJETO: | E5: CONTRATANTE: | G5: BASE: Nov/2020
A6: =PFP!A6 -> Projeto Executivo e Estudos Complementares dos Sistemas de Adução na Região do Seridó no Estado do Rio Grande do Norte | E6: CODEVASF (SEDE) | G6: CODE: Jan/2020
A7: Cod. | B7: Base | C7: Insumos | D7: Uni | E7: Qde | F7: Preço Unitário (PU) | G7: Preço Total (PT)
A8: GT07 | B8: CODE | C8: Sondagem Percussão: (Des)Mobilização | D8: un | E8: 18 | F8: 878.94 | G8: =ROUND(F8*E8,2) -> 15820.92
A9: GT08 | B9: CODE | C9: Sondagem Percursão: com SPT | D9: m | E9: =E8*50 -> 900 | F9: 77.08 | G9: 69372
A10: GT09 | B10: CODE | C10: Sondagem Percursão: Desloc/Instalação 0-200 m | D10: un | E10: 30 | F10: 684.54 | G10: 20536.2
A11: GT10 | B11: CODE | C11: Sondagem Percursão: Desloc/Instalação 201-500 m | D11: un | E11: 60 | F11: 1001.74 | G11: 60104.4
A12: GT11 | B12: CODE | C12: Sondagem Percursão: Desloc/Instalação >500 m | D12: un | E12: 80 | F12: 1318.94 | G12: 105515.2
A13: GT13 | B13: CODE | C13: Sondagem Trado 4'' | D13: m | E13: 400 | F13: 64.94 | G13: 25976
A14: GT15 | B14: CODE | C14: Ensaio: Umidade Natural | D14: un | E14: 400 | F14: 84.49 | G14: 33796
A15: GT16 | B15: CODE | C15: Ensaio: Densidade Natural | D15: un | E15: 400 | F15: 84.49 | G15: 33796
A16: GT17 | B16: CODE | C16: Ensaio: Limite de Liquidez | D16: un | E16: 400 | F16: 117 | G16: 46800
A17: GT18 | B17: CODE | C17: Ensaio: Limite de Plasticidade | D17: un | E17: 400 | F17: 117 | G17: 46800
A18: GT19 | B18: CODE | C18: Ensaio: Granulometria por Peneiramento | D18: un | E18: 400 | F18: 123.34 | G18: 49336
A19: GT20 | B19: CODE | C19: Ensaio: Granulometria por Sedimentação | D19: un | E19: 400 | F19: 382.79 | G19: 153116
A20: GT21 | B20: CODE | C20: Ensaio: Compactação Proctor Normal | D20: un | E20: 400 | F20: 160.41 | G20: 64164
A21: GT22 | B21: CODE | C21: Ensaio: Massa Especifica Real dos Grãos | D21: un | E21: 400 | F21: 104.27 | G21: 41708
A22: GT23 | B22: CODE | C22: Ensaio: Adensamento Oedométrico | D22: un | E22: 20 | F22: 283.57 | G22: 5671.4
A23: GT24 | B23: CODE | C23: Ensaio: Triaxial UU ñ consolidado ñ drenado | D23: un | E23: 5 | F23: 822.95 | G23: 4114.75
A24: GT25 | B24: CODE | C24: Ensaio: Triaxial CU conslidado ñ drenado | D24: un | E24: 40 | F24: 1129.48 | G24: 45179.2
A25: GT26 | B25: CODE | C25: Ensaio: Expansão colapsividade em aneis | D25: un | E25: 100 | F25: 380.8 | G25: 38080
A26: GT27 | B26: CODE | C26: Ensaio: Expansão amostra indeformada com pressão de expansão | D26: un | E26: 40 | F26: 300.93 | G26: 12037.2
A27: GT28 | B27: CODE | C27: Ensaio: Dispersão Granulometria Comparativa | D27: un | E27: 100 | F27: 228.5 | G27: 22850
A28: GT29 | B28: CODE | C28: Ensaio: Dispersão Crumb Test | D28: un | E28: 100 | F28: 84.66 | G28: 8466
A29: GT30 | B29: CODE | C29: Ensaio: Infiltração | D29: un | E29: 30 | F29: 228.5 | G29: 6855
A30: GT31 | B30: CODE | C30: Ensaio: Perda de Água 5 estágios | D30: un | E30: 30 | F30: 361.18 | G30: 10835.4
A31: GT32 | B31: CODE | C31: Ensaio: Análise Quimica da Areia | D31: un | E31: 6 | F31: 459.82 | G31: 2758.92
A32: GT33 | B32: CODE | C32: Ensaio: Mineralogia da Areia | D32: un | E32: 20 | F32: 529.2 | G32: 10584
A33: GT34 | B33: CODE | C33: Ensaio: Análise Petrográfica/Mineralogia | D33: un | E33: 6 | F33: 529.2 | G33: 3175.2
A34: GT35 | B34: CODE | C34: Ensaio: Abrasão Los Angeles | D34: un | E34: 6 | F34: 414.19 | G34: 2485.14
A35: GT36 | B35: CODE | C35: Ensaio: Reatividade Potencial | D35: un | E35: 6 | F35: 1382.66 | G35: 8295.96
A36: GT37 | B36: CODE | C36: Ensaio: Permeabilidade Vertical de Carga Variável | D36: un | E36: 6 | F36: 649.14 | G36: 3894.84
A37: GT38 | B37: CODE | C37: Ensaio: Retirada de Amostra Indeformada | D37: un | E37: 30 | F37: 691.33 | G37: =ROUND(F37*E37,2) -> 20739.9
A38: GT39 | B38: CODE | C38: Ensaio: Permeabilidade "in situ" | D38: un | E38: 6 | F38: 511.58 | G38: 3069.48
A39: TOTAL SERVIÇOS GEOTÉCNICOS | G39: =SUM(G8:G38) -> 975933.11
A40: LEGENDA:
A41: Uni - unidade de medição do insumo;
A42: Qde - Quantidade do Insumo (não pode ocorrer alteração pela Licitante)
A43: PU - Preço Unitário (composições padrão da Codevasf, já incluso o FatorK)
A44: PT - Preço Total (incluído encargos, taxas e impostos) - PT = Qde x PU

Sheet PFP2.1_FatorKa
A1: DETALHAMENTO DOS ENCARGOS SOCIAIS: Ka | F1: CODIGO:
F2: PFP-2.1
A3: NOME DA CONSULTORA:
A5: PROJETO: | C5: CONTRATANTE: | F5: BASE: Nov/2020
A6: =PFP!A6 -> Projeto Executivo e Estudos Complementares dos Sistemas de Adução na Região do Seridó no Estado do Rio Grande do Norte | C6: CODEVASF (SEDE) | F6: SINAPI/DF: Jan/2020
A7: Cod | B7: DESCRIÇÃO | E7: % | F7: R$
A8: A | B8: ENCARGOS SOCIAIS BÁSICOS | E8: =ROUND(SUM(E9:E17),4) -> 0.378 | F8: =ROUND(E8*SUMIF(PFP!$B$8:$B$24,"MO1",PFP!$J$8:$J$24),2) -> 827263.25
A9: A1 | B9: INSS | E9: 0.2 | F9: =ROUND(E9*SUMIF(PFP!$B$8:$B$24,"MO1",PFP!$J$8:$J$24),2) -> 437705.42
A10: A2 | B10: SESI | E10: 0.015 | F10: =ROUND(E10*SUMIF(PFP!$B$8:$B$24,"MO1",PFP!$J$8:$J$24),2) -> 32827.91
A11: A3 | B11: SENAI | E11: 0.01 | F11: =ROUND(E11*SUMIF(PFP!$B$8:$B$24,"MO1",PFP!$J$8:$J$24),2) -> 21885.27
A12: A4 | B12: INCRA | E12: 0.002 | F12: =ROUND(E12*SUMIF(PFP!$B$8:$B$24,"MO1",PFP!$J$8:$J$24),2) -> 4377.05
A13: A5 | B13: SEBRAE | E13: 0.006 | F13: =ROUND(E13*SUMIF(PFP!$B$8:$B$24,"MO1",PFP!$J$8:$J$24),2) -> 13131.16
A14: A6 | B14: Salário Educação | E14: 0.025 | F14: =ROUND(E14*SUMIF(PFP!$B$8:$B$24,"MO1",PFP!$J$8:$J$24),2) -> 54713.18
A15: A7 | B15: Seguro Contra Acidentes de Trabalho | E15: 0.03 | F15: =ROUND(E15*SUMIF(PFP!$B$8:$B$24,"MO1",PFP!$J$8:$J$24),2) -> 65655.81
A16: A8 | B16: FGTS | E16: 0.08 | F16: =ROUND(E16*SUMIF(PFP!$B$8:$B$24,"MO1",PFP!$J$8:$J$24),2) -> 175082.17
A17: A9 | B17: SECONCI | E17: 0.01 | F17: =ROUND(E17*SUMIF(PFP!$B$8:$B$24,"MO1",PFP!$J$8:$J$24),2) -> 21885.27
A18: B | B18: ENCARGOS SOCIAIS QUE RECEBEM INCIDÊNCIA DE "A" | E18: =ROUND(SUM(E19:E25),4) -> 0.1944 | F18: =ROUND(E18*SUMIF(PFP!$B$8:$B$24,"MO1",PFP!$J$8:$J$24),2) -> 425449.67
A19: B3 | B19: Auxílio Enfermidade | E19: 0.0069 | F19: =ROUND(E19*SUMIF(PFP!$B$8:$B$24,"MO1",PFP!$J$8:$J$24),2) -> 15100.84
A20: B4 | B20: 13º Salário | E20: 0.0833 | F20: =ROUND(E20*SUMIF(PFP!$B$8:$B$24,"MO1",PFP!$J$8:$J$24),2) -> 182304.31
A21: B5 | B21: Licença Paternidade | E21: 0.0006 | F21: =ROUND(E21*SUMIF(PFP!$B$8:$B$24,"MO1",PFP!$J$8:$J$24),2) -> 1313.12
A22: B6 | B22: Faltas Justificadas | E22: 0.0056 | F22: =ROUND(E22*SUMIF(PFP!$B$8:$B$24,"MO1",PFP!$J$8:$J$24),2) -> 12255.75
A23: B8 | B23: Auxílio Acidente de Trabalho | E23: 0.0009 | F23: =ROUND(E23*SUMIF(PFP!$B$8:$B$24,"MO1",PFP!$J$8:$J$24),2) -> 1969.67
A24: B9 | B24: Férias Gozadas | E24: 0.0968 | F24: =ROUND(E24*SUMIF(PFP!$B$8:$B$24,"MO1",PFP!$J$8:$J$24),2) -> 211849.43
A25: B10 | B25: Salário Maternidade | E25: 0.0003 | F25: =ROUND(E25*SUMIF(PFP!$B$8:$B$24,"MO1",PFP!$J$8:$J$24),2) -> 656.56
A26: C | B26: ENCARGOS SOCIAIS QUE NÃO RECEBEM INCIDÊNCIA DE "A" | E26: =ROUND(SUM(E27:E31),4) -> 0.0843 | F26: =ROUND(E26*SUMIF(PFP!$B$8:$B$24,"MO1",PFP!$J$8:$J$24),2) -> 184492.84
A27: C1 | B27: Aviso Prévio Indenizado | E27: 0.03 | F27: =ROUND(E27*SUMIF(PFP!$B$8:$B$24,"MO1",PFP!$J$8:$J$24),2) -> 65655.81
A28: C2 | B28: Aviso Prévio Trabalhado | E28: 0.0007 | F28: =ROUND(E28*SUMIF(PFP!$B$8:$B$24,"MO1",PFP!$J$8:$J$24),2) -> 1531.97
A29: C3 | B29: Férias Indenizadas | E29: 0.0135 | F29: =ROUND(E29*SUMIF(PFP!$B$8:$B$24,"MO1",PFP!$J$8:$J$24),2) -> 29545.12
A30: C4 | B30: Depósito Rescisão Sem Justa Causa | E30: 0.0376 | F30: =ROUND(E30*SUMIF(PFP!$B$8:$B$24,"MO1",PFP!$J$8:$J$24),2) -> 82288.62
A31: C5 | B31: Indenização Adicional | E31: 0.0025 | F31: =ROUND(E31*SUMIF(PFP!$B$8:$B$24,"MO1",PFP!$J$8:$J$24),2) -> 5471.32
A32: D | B32: REINCIDÊNCIAS | E32: =ROUND(SUM(E33:E34),4) -> 0.0762 | F32: =ROUND(E32*SUMIF(PFP!$B$8:$B$24,"MO1",PFP!$J$8:$J$24),2) -> 166765.77
A33: D1 | B33: Reincidência de "A" sobre "B" | E33: =ROUND(E8*E18,4) -> 0.0735 | F33: =ROUND(E33*SUMIF(PFP!$B$8:$B$24,"MO1",PFP!$J$8:$J$24),2) -> 160856.74
A34: D2 | B34: Reincidência de "A" sobre Aviso Prévio Trabalhado e reincidência do FGTS sobre Aviso Prévio Indenizado | E34: =ROUND((E28*E8)+(E27*E16),4) -> 0.0027 | F34: =ROUND(E34*SUMIF(PFP!$B$8:$B$24,"MO1",PFP!$J$8:$J$24),2) -> 5909.02
A35: K1 | B35: ENCARGOS SOCIAIS | E35: =ROUND(E8+E18+E26+E32,4) -> 0.7329 | F35: =ROUND(E35*SUMIF(PFP!$B$8:$B$24,"MO1",PFP!$J$8:$J$24),2) -> 1603971.53
A36: Ka | B36: TAXA DE RESSARCIMENTO DE DESPESAS E ENCARGOS SOBRE MO1 | E36: =ROUND((1+E35+PFP3_FatorKc!E13)*(1+PFP3_FatorKc!E12)*(1+PFP3_FatorKc!E8),4) -> 2.3645
A37: OBSERVAÇÃO:
A38: 1 - DISCRIMINAR OS ENCARGOS SOCIAIS COM SEUS RESPECTIVOS PERCENTUAS TOTALIZANDO OS MESMOS.
A39: 2 - APLICAR O % TOTAL P/ CALCULAR OS E. SOCIAIS INCIDENTES NA MÃO-DE-OBRA COM VÍNCULO PERMANENTE
A40: Ka - Taxa de Ressarcimento de Despesas e Encargos sobre a Mão de Obra COM VINCULO (incide apenas no Insumo Codigo M.O.)
A41: Ka = (1 + K1 + K2) x (1 + K3) x (1 + K4)

Sheet PFP2.2_FatorKb
A1: DETALHAMENTO DOS ENCARGOS SOCIAIS: Kb | F1: CODIGO:
F2: PFP-2.2
A3: NOME DA CONSULTORA:
A5: PROJETO: | C5: CONTRATANTE: | F5: BASE: Nov/2020
A6: =PFP!A6 -> Projeto Executivo e Estudos Complementares dos Sistemas de Adução na Região do Seridó no Estado do Rio Grande do Norte | C6: CODEVASF (SEDE) | F6: SINAPI/DF: Jan/2020
A7: Cod | B7: DESCRIÇÃO | E7: % | F7: R$
A8: A | B8: ENCARGOS SOCIAIS BÁSICOS | E8: =ROUND(SUM(E9:E17),4) -> 0.2 | F8: =ROUND(E8*SUMIF(PFP!$B$8:$B$24,"MO2",PFP!$J$8:$J$24),2) -> 186337.54
A9: A1 | B9: INSS | E9: 0 | F9: =ROUND(E9*SUMIF(PFP!$B$8:$B$24,"MO2",PFP!$J$8:$J$24),2) -> 0
A10: A2 | B10: SESI | E10: 0 | F10: =ROUND(E10*SUMIF(PFP!$B$8:$B$24,"MO2",PFP!$J$8:$J$24),2) -> 0
A11: A3 | B11: SENAI | E11: 0 | F11: =ROUND(E11*SUMIF(PFP!$B$8:$B$24,"MO2",PFP!$J$8:$J$24),2) -> 0
A12: A4 | B12: INCRA | E12: 0 | F12: =ROUND(E12*SUMIF(PFP!$B$8:$B$24,"MO2",PFP!$J$8:$J$24),2) -> 0
A13: A5 | B13: SEBRAE | E13: 0 | F13: =ROUND(E13*SUMIF(PFP!$B$8:$B$24,"MO2",PFP!$J$8:$J$24),2) -> 0
A14: A6 | B14: Salário Educação | E14: 0 | F14: =ROUND(E14*SUMIF(PFP!$B$8:$B$24,"MO2",PFP!$J$8:$J$24),2) -> 0
A15: A7 | B15: Seguro Contra Acidentes de Trabalho | E15: 0 | F15: =ROUND(E15*SUMIF(PFP!$B$8:$B$24,"MO2",PFP!$J$8:$J$24),2) -> 0
A16: A8 | B16: FGTS | E16: 0.2 | F16: =ROUND(E16*SUMIF(PFP!$B$8:$B$24,"MO2",PFP!$J$8:$J$24),2) -> 186337.54
A17: A9 | B17: SECONCI | E17: 0 | F17: =ROUND(E17*SUMIF(PFP!$B$8:$B$24,"MO2",PFP!$J$8:$J$24),2) -> 0
A18: B | B18: ENCARGOS SOCIAIS QUE RECEBEM INCIDÊNCIA DE "A" | E18: =ROUND(SUM(E19:E25),4) -> 0 | F18: =ROUND(E18*SUMIF(PFP!$B$8:$B$24,"MO2",PFP!$J$8:$J$24),2) -> 0
A19: B3 | B19: Auxílio Enfermidade | E19: 0 | F19: =ROUND(E19*SUMIF(PFP!$B$8:$B$24,"MO2",PFP!$J$8:$J$24),2) -> 0
A20: B4 | B20: 13º Salário | E20: 0 | F20: =ROUND(E20*SUMIF(PFP!$B$8:$B$24,"MO2",PFP!$J$8:$J$24),2) -> 0
A21: B5 | B21: Licença Paternidade | E21: 0 | F21: =ROUND(E21*SUMIF(PFP!$B$8:$B$24,"MO2",PFP!$J$8:$J$24),2) -> 0
A22: B6 | B22: Faltas Justificadas | E22: 0 | F22: =ROUND(E22*SUMIF(PFP!$B$8:$B$24,"MO2",PFP!$J$8:$J$24),2) -> 0
A23: B8 | B23: Auxílio Acidente de Trabalho | E23: 0 | F23: =ROUND(E23*SUMIF(PFP!$B$8:$B$24,"MO2",PFP!$J$8:$J$24),2) -> 0
A24: B9 | B24: Férias Gozadas | E24: 0 | F24: =ROUND(E24*SUMIF(PFP!$B$8:$B$24,"MO2",PFP!$J$8:$J$24),2) -> 0
A25: B10 | B25: Salário Maternidade | E25: 0 | F25: =ROUND(E25*SUMIF(PFP!$B$8:$B$24,"MO2",PFP!$J$8:$J$24),2) -> 0
A26: C | B26: ENCARGOS SOCIAIS QUE NÃO RECEBEM INCIDÊNCIA DE "A" | E26: =ROUND(SUM(E27:E31),4) -> 0 | F26: =ROUND(E26*SUMIF(PFP!$B$8:$B$24,"MO2",PFP!$J$8:$J$24),2) -> 0
A27: C1 | B27: Aviso Prévio Indenizado | E27: 0 | F27: =ROUND(E27*SUMIF(PFP!$B$8:$B$24,"MO2",PFP!$J$8:$J$24),2) -> 0
A28: C2 | B28: Aviso Prévio Trabalhado | E28: 0 | F28: =ROUND(E28*SUMIF(PFP!$B$8:$B$24,"MO2",PFP!$J$8:$J$24),2) -> 0
A29: C3 | B29: Férias Indenizadas | E29: 0 | F29: =ROUND(E29*SUMIF(PFP!$B$8:$B$24,"MO2",PFP!$J$8:$J$24),2) -> 0
A30: C4 | B30: Depósito Rescisão Sem Justa Causa | E30: 0 | F30: =ROUND(E30*SUMIF(PFP!$B$8:$B$24,"MO2",PFP!$J$8:$J$24),2) -> 0
A31: C5 | B31: Indenização Adicional | E31: 0 | F31: =ROUND(E31*SUMIF(PFP!$B$8:$B$24,"MO2",PFP!$J$8:$J$24),2) -> 0
A32: D | B32: REINCIDÊNCIAS | E32: =ROUND(SUM(E33:E34),4) -> 0 | F32: =ROUND(E32*SUMIF(PFP!$B$8:$B$24,"MO2",PFP!$J$8:$J$24),2) -> 0
A33: D1 | B33: Reincidência de "A" sobre "B" | E33: =ROUND(E8*E18,4) -> 0 | F33: =ROUND(E33*SUMIF(PFP!$B$8:$B$24,"MO2",PFP!$J$8:$J$24),2) -> 0
A34: D2 | B34: Reincidência de "A" sobre Aviso Prévio Trabalhado e reincidência do FGTS sobre Aviso Prévio Indenizado | E34: =ROUND(E8*E28,4)+ROUND(E27*E11,4) -> 0 | F34: =ROUND(E34*SUMIF(PFP!$B$8:$B$24,"MO2",PFP!$J$8:$J$24),2) -> 0
A35: K1 | B35: ENCARGOS SOCIAIS | E35: =ROUND(E8+E18+E26+E32,4) -> 0.2 | F35: =ROUND(E35*SUMIF(PFP!$B$8:$B$24,"MO2",PFP!$J$8:$J$24),2) -> 186337.54
A36: Kb | B36: TAXA DE RESSARCIMENTO DE DESPESAS E ENCARGOS SOBRE MO2 | E36: =ROUND((1+E35+PFP3_FatorKc!E13)*(1+PFP3_FatorKc!E12)*(1+PFP3_FatorKc!E8),4) -> 1.6953
A37: OBSERVAÇÃO:
A38: 1 - DISCRIMINAR OS ENCARGOS SOCIAIS COM SEUS RESPECTIVOS PERCENTUAS TOTALIZANDO OS MESMOS.
A39: 2 - APLICAR O % TOTAL P/ CALCULAR OS E. SOCIAIS INCIDENTES NA MÃO-DE-OBRA SEM VÍNCULO PERMANENTE
A40: Kb - Taxa de Ressarcimento de Despesas e Encargos sobre a Mão de Obra SEM VINCULO (incide apenas no Insumo Codigo M.O.)
A41: Kb = (1 + K1 + K2) x (1 + K3) x (1 + K4)

Sheet PFP3_FatorKc
A1: DESPESAS FISCAIS E CUSTOS DIVERSOS: Kc | F1: CODIGO:
F2: PFP-3
A3: NOME DA CONSULTORA:
A5: PROJETO: | C5: CONTRATANTE: | F5: BASE: Nov/2020
A6: =PFP!A6 -> Projeto Executivo e Estudos Complementares dos Sistemas de Adução na Região do Seridó no Estado do Rio Grande do Norte | C6: CODEVASF (SEDE) | F6: PROP: Nov/2020
A7: Cod | B7: DESCRIÇÃO1 | D7: % preço2 | E7: % custo4 | F7: R$
A8: K4 | B8: TAXAS E IMPOSTOS | D8: =ROUND(D9+D10+D11,4) -> 0.124 | E8: =ROUND(E9+E10+E11,4) -> 0.1416 | F8: =E8*SUM(SUMIF(PFP!$B$8:$B$24,"MO1",PFP!$J$8:$J$24)*(1+PFP2.1_FatorKa!$E$35)+SUMIF(PFP!$B$8:$B$24,"MO2",PFP!$J$8:$J$24)*(1+PFP2.2_FatorKb!$E$35)+SUMIF(PFP!$B$8:$B$24,"<>MO*",PFP!$J$8:$J$24)+$F$13+$F$12) -> 893752.7978
A9: K4.1 | B9: ISS | D9: 0.05 | E9: =ROUND((1/(1-$D$8))*D9,4) -> 0.0571 | F9: =E9*SUM(SUMIF(PFP!$B$8:$B$24,"MO1",PFP!$J$8:$J$24)*(1+PFP2.1_FatorKa!$E$35)+SUMIF(PFP!$B$8:$B$24,"MO2",PFP!$J$8:$J$24)*(1+PFP2.2_FatorKb!$E$35)+SUMIF(PFP!$B$8:$B$24,"<>MO*",PFP!$J$8:$J$24)+$F$13+$F$12) -> 360404.5533
A10: K4.2 | B10: PIS3 - aliquota efetiva com percentual-desconto | D10: =ROUND(1.65%*0.8,4) -> 0.0132 | E10: =ROUND((1/(1-$D$8))*D10,4) -> 0.0151 | F10: =E10*SUM(SUMIF(PFP!$B$8:$B$24,"MO1",PFP!$J$8:$J$24)*(1+PFP2.1_FatorKa!$E$35)+SUMIF(PFP!$B$8:$B$24,"MO2",PFP!$J$8:$J$24)*(1+PFP2.2_FatorKb!$E$35)+SUMIF(PFP!$B$8:$B$24,"<>MO*",PFP!$J$8:$J$24)+$F$13+$F$12) -> 95308.38451
A11: K4.3 | B11: COFINS3 - aliquota efetiva com percentual-desconto | D11: =ROUND(7.6%*0.8,4) -> 0.0608 | E11: =ROUND((1/(1-$D$8))*D11,4) -> 0.0694 | F11: =E11*SUM(SUMIF(PFP!$B$8:$B$24,"MO1",PFP!$J$8:$J$24)*(1+PFP2.1_FatorKa!$E$35)+SUMIF(PFP!$B$8:$B$24,"MO2",PFP!$J$8:$J$24)*(1+PFP2.2_FatorKb!$E$35)+SUMIF(PFP!$B$8:$B$24,"<>MO*",PFP!$J$8:$J$24)+$F$13+$F$12) -> 438039.8599
A12: K3 | B12: REMUNERAÇÃO DA EMPRESA (LUCRO) | E12: 0.1 | F12: =E12*SUM(SUMIF(PFP!$B$8:$B$24,"MO1",PFP!$J$8:$J$24)*(1+PFP2.1_FatorKa!$E$35)+SUMIF(PFP!$B$8:$B$24,"MO2",PFP!$J$8:$J$24)*(1+PFP2.2_FatorKb!$E$35)+SUMIF(PFP!$B$8:$B$24,"<>MO*",PFP!$J$8:$J$24)+$F$13) -> 573801.2312
A13: K2 | B13: CUSTOS DA ADMINISTRAÇÃO CENTRAL | E13: =ROUND(SUM(E14:E16),4) -> 0.15 | F13: =ROUND(E13*SUMIF(PFP!$B$8:$B$24,"MO*",PFP!$J$8:$J$24),2) -> 468032.22
A14: K2.1 | B14: Custos da administração central da empresa (diretoria, pessoal técnico de apoio e pessoal administrativo não diretamente vinculado à prestação dos serviços) | E14: 0.1 | F14: =ROUND(E14*SUMIF(PFP!$B$8:$B$24,"MO*",PFP!$J$8:$J$24),2) -> 312021.48
A15: K2.2 | B15: Outras despesas que afetam o custo de produção como treinamento, biblioteca, programa de qualidade, programa de benefícios, auditoria interna e externa | E15: 0.03 | F15: =ROUND(E15*SUMIF(PFP!$B$8:$B$24,"MO*",PFP!$J$8:$J$24),2) -> 93606.44
A16: K2.3 | B16: Despesas fixas e variaveis com patrimônio, aluguéis, comunicação, manutenção e transporte não diretamente relacionados com o custo direto dos serviços | E16: 0.02 | F16: =ROUND(E16*SUMIF(PFP!$B$8:$B$24,"MO*",PFP!$J$8:$J$24),2) -> 62404.3
A17: Kc | B17: TAXA RESSARCIMENTO DE DESPESAS SOBRE CUSTOS DIVERSOS | E17: =ROUND((1+E12)*(1+E8),4) -> 1.2558
A18: NOME DO INFORMANTE: | E18: QUALIFICAÇÃO:
A20: ASSINATURA: | E20: DATA:
A22: Observação:
A23: 1 - RELACIONAR OS CUSTOS DE ADMINISTRAÇÃO COM RESPECTIVOS PERCENTUAIS INCIDENTES NA MÃO -DE-OBRA
A24: 1 - DISCRIMINAR OS TRIBUTOS QUE INCIDEM SOBRE OS CUSTOS DA PRESTAÇÃO DOS SERVIÇOS
A25: 2 - K4 = INDICAR % DE CADA TRIBUTO E A SOMA DOS MESMOS (ex: ISS 5% + PIS 1,65% + COFINS 7,60% = 14,25%)
A26: 3 - PIS e COFINS, Regime de Incidencia Acumulativa (0,65% e 3,00% - sem percentual de desconto) ou em Regime de Incidencia Não Acumulativa (1,65% e 7,60% - aplicável percentual de desconto) de acordo com a forma de apuração do lucro no IRPJ. APRESENTAR COMPROVANTES de aproveitamento de créditos tributários dos últimos 12 meses em caso de aplicação de "percentual de desconto".
A27: 4 - AS DESPESAS FISCAIS (K4) INCIDEM SOBRE O TOTAL DA FATURA E NÃO SOBRE OS CUSTOS INCORRIDOS,
A28: DEVENDO SER CALCULADO O K4' APLICANDO-SE A SEGUINTE FÓRMULA:
A29: K4' = { [ 1 / ( 1 - K4) ] - 1 } x 100
A30: =CONCATENATE(" K4' = { [ 1 / ( 1 - ",D8," ) ] - 1 } x 100") -> K4' = { [ 1 / ( 1 - 0,124 ) ] - 1 } x 100
A31: Kc - Taxa de Ressarcimento de Despesas sobre Custos Diversos (incide sobre os Insumos Codigo DP e EM)
A32: Kc = (1 + K3) x (1 + K4)
A33: K2 - Incide sobre o Custo Total (CT) da Mão de Obra (MO* = MO1 + MO2)
A34: K3 - Incide sobre o Custo Total (CT) Mão de Obra com encargos (MO1 x Ka ou MO2 x Kb), demais Custos (DP e EM), e Custos da Administração Central (K2)
A35: K4 - Incide sobre o Custo Total (CT) Mão de Obra com encargos (MO1 x Ka ou MO2 x Kb), demais Custos (DP e EM), e Custos da Administração Central (K2) e Lucro (K3)

Sheet CRO1_Ins-Pro
A1: INSUMOS POR ETAPA/PRODUTO | O1: CODIGO:
O2: CRO-1
A3: Cod. | B3: Categoria / Insumo | C3: Uni | D3: Qde | E3: CUD | F3: PU | G3: FatorK | H3: EC | I3: T1N | J3: T2N | K3: T3N | L3: T4N | M3: T5N | N3: T1S | O3: T2S | P3: T3S | Q3: T4S | R3: T5S
G4: Meses | H4: 4 | I4: 3 | J4: 3 | K4: 3 | L4: 2 | M4: 1 | N4: 1 | O4: 3 | P4: 1 | Q4: 1 | R4: 1
A5: P0 | B5: Engenheiro Sênior | C5: mês | D5: =SUM(H5:R5) -> 11.5 | E5: =PFP!G8 -> 19796.48 | F5: =PFP!H8 -> 33560.97 | G5: =PFP!I8 -> 1.6953 | H5: 2 | I5: 1.5 | J5: 1.5 | K5: 1.5 | L5: 1 | M5: 0.5 | N5: 0.5 | O5: 1.5 | P5: 0.5 | Q5: 0.5 | R5: 0.5
A6: P1 | B6: Engenheiro Pleno | C6: mês | D6: 46 | E6: =PFP!G9 -> 15304.96 | F6: =PFP!H9 -> 25946.5 | G6: =PFP!I9 -> 1.6953 | H6: 8 | I6: 6 | J6: 6 | K6: 6 | L6: 4 | M6: 2 | N6: 2 | O6: 6 | P6: 2 | Q6: 2 | R6: 2
A7: P2 | B7: Engenheiro Médio | C7: mês | D7: 46 | E7: =PFP!G10 -> 11711.04 | F7: =PFP!H10 -> 27690.75 | G7: =PFP!I10 -> 2.3645 | H7: 8 | I7: 6 | J7: 6 | K7: 6 | L7: 4 | M7: 2 | N7: 2 | O7: 6 | P7: 2 | Q7: 2 | R7: 2
A8: P3 | B8: Engenheiro Júnior | C8: mês | D8: 84 | E8: =PFP!G11 -> 9724 | F8: =PFP!H11 -> 22992.4 | G8: =PFP!I11 -> 2.3645 | H8: 8 | I8: 12 | J8: 12 | K8: 12 | L8: 8 | M8: 4 | N8: 4 | O8: 12 | P8: 4 | Q8: 4 | R8: 4
A9: S1 | B9: Analista Pleno | C9: mês | D9: 2 | E9: =PFP!G12 -> 5963.68 | F9: =PFP!H12 -> 14101.12 | G9: =PFP!I12 -> 2.3645 | H9: 2
A10: S2 | B10: Analista Médio | C10: mês | D10: 4 | E10: =PFP!G13 -> 4782.69 | F10: =PFP!H13 -> 11308.67 | G10: =PFP!I13 -> 2.3645 | H10: 4
A11: S3 | B11: Analista Júnior | C11: mês | D11: 4 | E11: =PFP!G14 -> 3601.69 | F11: =PFP!H14 -> 8516.2 | G11: =PFP!I14 -> 2.3645 | H11: 4
A12: T2 | B12: Técnico Pleno | C12: mês | D12: 46 | E12: =PFP!G15 -> 5362.72 | F12: =PFP!H15 -> 12680.15 | G12: =PFP!I15 -> 2.3645 | H12: 8 | I12: 6 | J12: 6 | K12: 6 | L12: 4 | M12: 2 | N12: 2 | O12: 6 | P12: 2 | Q12: 2 | R12: 2
A13: T3 | B13: Técnico Junior | C13: mês | D13: 92 | E13: =PFP!G16 -> 4627.04 | F13: =PFP!H16 -> 10940.64 | G13: =PFP!I16 -> 2.3645 | H13: 16 | I13: 12 | J13: 12 | K13: 12 | L13: 8 | M13: 4 | N13: 4 | O13: 12 | P13: 4 | Q13: 4 | R13: 4
A14: A1 | B14: Administrativo (Secretariado) | C14: dia | D14: 23 | E14: =PFP!G17 -> 5007.2 | F14: =PFP!H17 -> 11839.52 | G14: =PFP!I17 -> 2.3645 | H14: 4 | I14: 3 | J14: 3 | K14: 3 | L14: 2 | M14: 1 | N14: 1 | O14: 3 | P14: 1 | Q14: 1 | R14: 1
A15: V1 | B15: Diárias | C15: dia | D15: 615 | E15: =PFP!G18 -> 239 | F15: =PFP!H18 -> 300.14 | G15: =PFP!I18 -> 1.2558 | H15: 140 | I15: 75 | J15: 75 | K15: 75 | L15: 50 | M15: 25 | N15: 25 | O15: 75 | P15: 25 | Q15: 25 | R15: 25
A16: V3 | B16: Caminhonete 2.8 4x4 Diesel | C16: un | D16: 246 | E16: =PFP!G19 -> 196.18 | F16: =PFP!H19 -> 246.36 | G16: =PFP!I19 -> 1.2558 | H16: 56 | I16: 30 | J16: 30 | K16: 30 | L16: 20 | M16: 10 | N16: 10 | O16: 30 | P16: 10 | Q16: 10 | R16: 10
A17: V4 | B17: Passagens Aéreas (ida e volta) | C17: un | D17: 115 | E17: =PFP!G20 -> 994 | F17: =PFP!H20 -> 1248.27 | G17: =PFP!I20 -> 1.2558 | H17: 20 | I17: 15 | J17: 15 | K17: 15 | L17: 10 | M17: 5 | N17: 5 | O17: 15 | P17: 5 | Q17: 5 | R17: 5
A18: M3 | B18: Relatório Parcial | C18: un | D18: 33 | E18: =PFP!G21 -> 33.35 | F18: =PFP!H21 -> 41.88 | G18: =PFP!I21 -> 1.2558 | H18: 3 | I18: 3 | J18: 3 | K18: 3 | L18: 3 | M18: 3 | N18: 3 | O18: 3 | P18: 3 | Q18: 3 | R18: 3
A19: M4 | B19: Relatório Final | C19: un | D19: 33 | E19: =PFP!G22 -> 1478.8 | F19: =PFP!H22 -> 1857.08 | G19: =PFP!I22 -> 1.2558 | H19: 3 | I19: 3 | J19: 3 | K19: 3 | L19: 3 | M19: 3 | N19: 3 | O19: 3 | P19: 3 | Q19: 3 | R19: 3
A20: TP | B20: Total Serviços Cartográficos | C20: un | D20: 1 | E20: =PFP!G23 -> - | F20: =PFP!H23 -> 437669.76 | G20: =PFP!I23 -> - | H20: 1
A21: GT | B21: Total Serviços Geotécnicos | C21: un | D21: 1 | E21: =PFP!G24 -> - | F21: =PFP!H24 -> 975933.11 | G21: =PFP!I24 -> - | H21: 1
A22: TOTAL | B22: VALOR TOTAL POR PRODUTO | C22: R$ | D22: 8619272.975 | H22: =SUM(H5:H21*$F$5:$F$21) -> 2611591.29 | I22: =SUM(I5:I21*$F$5:$F$21) -> 945283.125 | J22: =SUM(J5:J21*$F$5:$F$21) -> 945283.125 | K22: =SUM(K5:K21*$F$5:$F$21) -> 945283.125 | L22: =SUM(L5:L21*$F$5:$F$21) -> 632087.71 | M22: =SUM(M5:M21*$F$5:$F$21) -> 318892.295 | N22: =SUM(N5:N21*$F$5:$F$21) -> 318892.295 | O22: =SUM(O5:O21*$F$5:$F$21) -> 945283.125 | P22: =SUM(P5:P21*$F$5:$F$21) -> 318892.295 | Q22: =SUM(Q5:Q21*$F$5:$F$21) -> 318892.295 | R22: =SUM(R5:R21*$F$5:$F$21) -> 318892.295
C23: % | D23: 1 | H23: =ROUND(H22/$D$22,5) -> 0.30299 | I23: =ROUND(I22/$D$22,5) -> 0.10967 | J23: 0.10967 | K23: 0.10967 | L23: 0.07333 | M23: 0.037 | N23: 0.037 | O23: 0.10967 | P23: 0.037 | Q23: 0.037 | R23: 0.037
A24: TOTAL | B24: VALOR DOS SUBPRODUTOS | C24: R$ | D24: 6895418.38 | H24: =H22*0.8 -> 2089273.032 | I24: =I22*0.8 -> 756226.5 | J24: 756226.5 | K24: 756226.5 | L24: 505670.168 | M24: 255113.836 | N24: =N22*0.8 -> 255113.836 | O24: 756226.5 | P24: 255113.836 | Q24: 255113.836 | R24: 255113.836
B25: VALOR DO PRODUTO CONSOLIDADO | C25: R$ | D25: 1723854.595 | H25: =H22*0.2 -> 522318.258 | I25: =I22*0.2 -> 189056.625 | J25: 189056.625 | K25: 189056.625 | L25: 126417.542 | M25: 63778.459 | N25: =N22*0.2 -> 63778.459 | O25: 189056.625 | P25: 63778.459 | Q25: 63778.459 | R25: 63778.459

Sheet CRO2_Pro-Mes
A1: CRONOGRAMA SIMPLIFICADO
A2: Cod. | B2: Produto/ Mês | C2: Soma | D2: 1 | E2: 2 | F2: 3 | G2: 4 | H2: 5 | I2: 6 | J2: 7 | K2: 8 | L2: 9 | M2: 10 | N2: 11 | O2: 12
A3: EC | B3: Estudos Complementares | C3: =SUM(D3:O3) -> 4 | D3: 1 | E3: 1 | F3: 1 | G3: 1
A4: T1N | B4: Trecho 1N | C4: =SUM(D4:O4) -> 3 | J4: 1 | K4: 1 | L4: 1
A5: T2N | B5: Trecho 2N | C5: =SUM(D5:O5) -> 3 | K5: 1 | L5: 1 | M5: 1
A6: T3N | B6: Trecho 3N | C6: =SUM(D6:O6) -> 3 | L6: 1 | M6: 1 | N6: 1
A7: T4N | B7: Trecho 4N | C7: =SUM(D7:O7) -> 2 | N7: 1 | O7: 1
A8: T5N | B8: Trecho 5N | C8: =SUM(D8:O8) -> 1 | O8: 1
A9: T1S | B9: Trecho 1S | C9: =SUM(D9:O9) -> 1 | H9: 1
A10: T2S | B10: Trecho 2S | C10: =SUM(D10:O10) -> 3 | H10: 1 | I10: 1 | J10: 1
A11: T3S | B11: Trecho 3S | C11: =SUM(D11:O11) -> 1 | K11: 1
A12: T4S | B12: Trecho 4S | C12: =SUM(D12:O12) -> 1 | G12: 1
A13: T5S | B13: Trecho 5S | C13: =SUM(D13:O13) -> 1 | F13: 1
